bitfinex-derivatives/quotes_BNBF0:USTF0_20230901
["timestamp","ask_amount","ask_price","bid_price","bid_amount"]
[1693589373926,0.17108548,212.52,211.38,0.94397547]
[1693589374122,0.17108548,212.52,211.39,0.86872718]
[1693589374522,0.17108548,212.52,211.38,0.86872718]
[1693589375029,4.9179359,212.5,211.37,0.86872718]
[1693589375329,0.17108548,212.49,211.38,0.94397547]
[1693589375527,0.17108548,212.49,211.31,0.15049658]
[1693589375528,0.17108548,212.49,211.39,0.86872718]
[1693589375728,0.17108548,212.48,211.38,0.86872718]
[1693589375925,0.17108548,212.48,211.4,0.86872718]
[1693589376121,0.17108548,212.47,211.41,0.86872718]
[1693589376323,0.17108548,212.51,211.39,0.86872718]
[1693589376527,0.17108548,212.5,211.4,0.86872718]
[1693589376722,5.08902138,212.51,211.39,0.86872718]
[1693589376925,0.17108548,212.5,211.4,0.86872718]
[1693589377223,0.17108548,212.5,211.41,0.86872718]
[1693589377428,0.17108548,212.5,211.4,0.86872718]
[1693589377620,0.17108548,212.5,211.41,0.86872718]
[1693589377826,0.17108548,212.5,211.39,0.86872718]
[1693589378020,0.17108548,212.5,211.42,0.86872718]
[1693589378326,6.88511027,212.45,211.43,0.86872718]
[1693589378522,4.9179359,212.41,211.33,0.86872718]
[1693589378727,0.17108548,212.4,211.34,0.86872718]
[1693589379028,0.17108548,212.4,211.25,3.7754005]
[1693589379029,0.17108548,212.4,211.35,0.86872718]
[1693589379222,0.17108548,212.4,211.34,0.86872718]
[1693589379425,0.17108548,212.4,211.34,0.94397547]
[1693589379622,6.88511027,212.39,211.35,0.86872718]
[1693589379922,4.9179359,212.37,211.35,0.86872718]
[1693589380122,0.17108548,212.36,211.35,0.94397547]
[1693589380322,0.17108548,212.37,211.36,0.86872718]
[1693589381229,4.9179359,212.31,211.42,0.07524829]
[1693589381428,0.17108548,212.3,211.43,0.86872718]
[1693589382233,0.17108548,212.3,211.42,0.86872718]
[1693589382426,6.88511027,212.27,211.42,0.86872718]
[1693589382732,6.88511027,212.27,211.35,0.86872718]
[1693589382733,4.9179359,212.24,211.35,0.86872718]
[1693589383032,0.17108548,212.23,211.36,0.86872718]
[1693589383231,0.17108548,212.23,211.35,0.07524829]
[1693589383425,0.17108548,212.23,211.36,0.86872718]
[1693589383931,0.17108548,212.23,211.35,0.86872718]
[1693589384131,0.17108548,212.23,211.34,0.86872718]
[1693589384327,0.17108548,212.23,211.36,0.86872718]
[1693589384530,0.17108548,212.23,211.37,0.86872718]
[1693589384925,0.17108548,212.23,211.38,0.86872718]
[1693589385328,0.17108548,212.23,211.22,0.15049658]
[1693589385329,6.88511027,212.2,211.39,0.86872718]
[1693589385525,6.88511027,212.2,211.23,0.86872718]
[1693589385732,6.88511027,212.2,211.21,0.86872718]
[1693589385733,0.17108548,212.19,211.21,0.86872718]
[1693589386035,0.17108548,212.19,211.22,0.86872718]
[1693589386332,0.17108548,212.19,211.23,0.86872718]
[1693589386531,0.17108548,212.19,211.17,0.86872718]
[1693589386832,0.17108548,212.19,211.18,0.86872718]
[1693589387032,0.17108548,212.21,211.16,0.86872718]
[1693589387232,0.17108548,212.21,211.15,0.86872718]
[1693589387532,0.17108548,212.21,211.16,0.86872718]
[1693589387727,5.08902138,212.21,211.14,0.86872718]
[1693589387930,0.17108548,212.2,211.15,0.86872718]
[1693589388125,0.17108548,212.24,211.1,0.86872718]
[1693589388327,0.17108548,212.23,211.11,0.86872718]
[1693589388526,0.17108548,212.25,211.1,0.86872718]
[1693589388735,0.17108548,212.24,211.11,0.86872718]
[1693589388932,0.17108548,212.24,211.11,0.07524829]
[1693589389132,0.17108548,212.23,211.12,0.86872718]
[1693589389533,0.17108548,212.23,211.09,0.07524829]
[1693589389534,0.17108548,212.22,211.13,0.86872718]
[1693589389829,0.17108548,212.28,211.1,0.86872718]
[1693589390028,0.17108548,212.28,210.87,3.77812309]
[1693589390029,0.17108548,212.27,211.14,0.86872718]
[1693589390234,0.17108548,212.27,211.11,0.86872718]
[1693589390434,0.17108548,212.26,211.15,0.86872718]
[1693589390634,0.17108548,212.26,211.16,0.86872718]
[1693589390934,0.17108548,212.26,211.04,3.77812309]
[1693589390935,5.08902138,212.25,211.17,0.86872718]
[1693589391136,0.17108548,212.25,211.17,0.86872718]
[1693589391436,0.17108548,212.24,211.18,0.86872718]
[1693589391637,0.17108548,212.24,211.03,0.86872718]
[1693589391833,0.17108548,212.23,211.03,0.86872718]
[1693589392033,0.17108548,212.28,211.03,0.86872718]
[1693589396740,4.9179359,212.25,211.03,0.86872718]
[1693589396940,0.17108548,212.24,210.86,0.86872718]
[1693589397234,0.17108548,212.24,210.87,0.86872718]
[1693589397539,0.17108548,212.25,210.87,0.94397547]
[1693589397741,0.17108548,212.23,210.87,0.94397547]
[1693589397938,0.17108548,212.23,210.81,0.15049658]
[1693589397939,0.17108548,212.22,210.88,0.94397547]
[1693589398239,0.17108548,212.21,210.89,0.86872718]
[1693589398439,0.17108548,212.27,210.87,0.86872718]
[1693589398634,0.17108548,212.2,210.88,0.86872718]
[1693589398838,0.17108548,212.19,210.88,0.86872718]
[1693589399034,5.08902138,212.28,210.89,0.07524829]
[1693589399240,0.17108548,212.27,210.89,0.07524829]
[1693589399435,0.17108548,212.27,210.9,0.86872718]
[1693589399838,0.17108548,212.27,210.89,0.86872718]
[1693589400440,4.9179359,212.26,210.87,0.86872718]
[1693589400645,4.9179359,212.26,210.9,0.86872718]
[1693589400939,4.9179359,212.26,210.85,3.77812309]
[1693589400940,0.17108548,212.25,210.91,0.86872718]
[1693589401139,0.17108548,212.25,210.86,3.85337138]
[1693589401140,0.17108548,212.25,210.88,0.07524829]
[1693589401346,0.17108548,212.25,210.89,0.86872718]
[1693589401745,9.83587181,212.23,210.9,0.86872718]
[1693589401945,5.08902138,212.22,210.86,0.07524829]
[1693589402146,0.17108548,212.22,210.91,0.86872718]
[1693589402340,0.17108548,212.21,210.89,0.07524829]
[1693589402543,0.17108548,212.21,210.92,0.86872718]
[1693589402745,0.17108548,212.21,210.89,0.07524829]
[1693589402746,0.17108548,212.23,210.93,0.86872718]
[1693589402943,0.17108548,212.2,210.94,0.07524829]
[1693589403139,5.08902138,212.22,210.94,0.07524829]
[1693589403344,0.17108548,212.19,210.95,0.94397547]
[1693589403648,4.9179359,212.23,210.96,0.86872718]
[1693589403649,0.17108548,212.18,210.96,0.86872718]
[1693589403845,0.17108548,212.22,210.95,0.86872718]
[1693589404045,0.17108548,212.22,210.98,0.07524829]
[1693589404346,0.17108548,212.25,211.0,0.07524829]
[1693589404546,0.17108548,212.21,211.0,0.07524829]
[1693589404841,0.17108548,212.2,211.04,0.07524829]
[1693589405247,0.17108548,212.25,211.05,0.86872718]
[1693589405446,0.17108548,212.24,211.05,0.86872718]
[1693589405644,0.17108548,212.25,211.05,0.86872718]
[1693589405945,0.17108548,212.24,211.05,0.86872718]
[1693589406147,6.88511027,212.29,211.05,0.86872718]
[1693589406148,0.17108548,212.25,211.05,0.86872718]
[1693589406344,0.17108548,212.23,211.05,0.86872718]
[1693589406540,0.17108548,212.22,211.05,0.86872718]
[1693589406743,0.17108548,212.26,211.05,0.94397547]
[1693589406948,0.17108548,212.26,211.06,0.86872718]
[1693589407148,4.9179359,212.23,211.11,0.07524829]
[1693589407349,4.9179359,212.23,211.04,0.15049658]
[1693589407350,0.17108548,212.22,211.15,0.07524829]
[1693589407648,0.17108548,212.21,211.16,0.86872718]
[1693589407948,0.17108548,212.2,211.16,0.86872718]
[1693589408144,0.17108548,212.26,211.16,0.86872718]
[1693589408948,4.9179359,212.24,211.19,0.07524829]
[1693589409351,0.17108548,212.23,211.2,0.86872718]
[1693589409749,0.17108548,212.23,211.2,0.94397547]
[1693589410051,0.17108548,212.23,211.21,0.86872718]
[1693589410251,6.88511027,212.22,211.21,0.86872718]
[1693589410451,0.17108548,212.21,211.2,0.86872718]
[1693589410751,0.17108548,212.21,211.21,0.86872718]
[1693589410951,0.17108548,212.21,211.19,0.07524829]
[1693589411152,0.17108548,212.21,211.2,0.86872718]
[1693589411546,4.9179359,212.14,211.21,0.86872718]
[1693589411746,0.17108548,212.13,211.23,0.07524829]
[1693589411949,0.17108548,212.18,211.24,0.94397547]
[1693589412145,0.17108548,212.12,211.25,0.86872718]
[1693589412350,0.17108548,212.11,211.25,0.86872718]
[1693589412552,0.17108548,212.18,211.25,0.86872718]
[1693589413052,0.17108548,212.18,211.22,0.07524829]
[1693589413252,6.88511027,212.13,211.26,0.86872718]
[1693589413554,0.17108548,212.12,211.27,0.86872718]
[1693589413854,0.17108548,212.12,211.27,0.07524829]
[1693589414049,0.17108548,212.12,211.28,0.94397547]
[1693589414250,0.17108548,212.11,211.29,0.86872718]
[1693589414449,0.17108548,212.16,211.28,0.86872718]
[1693589414652,0.17108548,212.15,211.29,0.86872718]
[1693589414852,0.17108548,212.16,211.22,0.94397547]
[1693589415054,0.17108548,212.16,211.27,0.07524829]
[1693589415250,6.88511027,212.11,211.27,0.07524829]
[1693589415557,4.9179359,212.08,211.28,0.86872718]
[1693589415851,0.17108548,212.07,211.28,0.86872718]
[1693589416051,0.17108548,212.07,211.29,0.86872718]
[1693589416248,0.17108548,212.07,211.26,0.86872718]
[1693589416653,0.17108548,212.07,211.26,0.94397547]
[1693589416858,5.08902138,212.07,211.27,0.94397547]
[1693589417155,4.9179359,212.02,211.32,0.07524829]
[1693589417355,0.17108548,212.01,211.33,0.86872718]
[1693589417581,0.17108548,212.02,211.33,0.86872718]
[1693589417752,0.17108548,212.0,211.33,0.86872718]
[1693589417950,0.17108548,211.99,211.33,0.94397547]
[1693589418154,0.17108548,212.02,211.34,0.86872718]
[1693589418354,0.17108548,211.98,211.34,0.86872718]
[1693589418550,0.17108548,211.97,211.34,0.86872718]
[1693589418756,0.17108548,212.03,211.33,0.86872718]
[1693589418956,0.17108548,211.96,211.35,0.86872718]
[1693589419157,0.17108548,212.02,211.34,0.86872718]
[1693589419357,0.17108548,211.95,211.36,0.86872718]
[1693589419557,5.08902138,212.01,211.35,0.94397547]
[1693589419857,0.17108548,212.0,211.36,0.86872718]
[1693589420255,0.17108548,212.0,211.36,0.94397547]
[1693589420458,0.17108548,212.0,211.37,0.86872718]
[1693589420661,0.17108548,212.01,211.37,0.86872718]
[1693589420858,0.17108548,211.99,211.37,0.86872718]
[1693589421062,0.17108548,211.98,211.4,0.07524829]
[1693589421362,0.17108548,211.97,211.41,0.86872718]
[1693589421563,0.17108548,212.05,211.41,0.94397547]
[1693589421762,0.17108548,212.05,211.42,0.86872718]
[1693589422159,0.17108548,212.06,211.42,0.86872718]
[1693589422365,0.17108548,212.04,211.42,0.86872718]
[1693589422659,0.17108548,212.05,211.41,0.94397547]
[1693589422965,0.17108548,212.03,211.42,0.86872718]
[1693589423165,0.17108548,212.04,211.42,0.86872718]
[1693589423464,0.17108548,212.02,211.42,0.86872718]
[1693589423659,0.17108548,212.01,211.42,0.86872718]
[1693589423864,0.17108548,212.09,211.43,0.86872718]
[1693589424164,0.17108548,212.08,211.42,0.86872718]
[1693589424362,0.17108548,212.08,211.44,0.86872718]
[1693589424664,0.17108548,212.07,211.45,0.86872718]
[1693589424864,4.9179359,212.1,211.42,0.86872718]
[1693589424865,0.17108548,212.09,211.42,0.86872718]
[1693589425065,0.17108548,212.06,211.46,0.86872718]
[1693589425267,0.17108548,212.05,211.43,0.86872718]
[1693589425465,0.17108548,212.11,211.47,0.86872718]
[1693589425666,0.17108548,212.1,211.39,0.07524829]
[1693589425867,0.17108548,212.11,211.4,0.868837]
[1693589426065,0.17108548,212.1,211.4,0.868837]
[1693589426267,0.17108548,212.11,211.4,0.868837]
[1693589426469,0.17108548,212.11,211.4,0.94408529]
[1693589426676,0.17108548,212.11,211.44,0.07524829]
[1693589426963,0.17108548,212.11,211.45,0.868837]
[1693589427163,0.17108548,212.21,211.45,0.868837]
[1693589427359,0.17108548,212.2,211.44,0.94408529]
[1693589427563,0.17108548,212.2,211.46,0.868837]
[1693589427765,0.17108548,212.21,211.46,0.868837]
[1693589428062,0.17108548,212.19,211.47,0.868837]
[1693589428264,6.88511027,212.17,211.38,0.868837]
[1693589428464,6.88511027,212.17,211.37,0.868837]
[1693589428862,0.17108548,212.16,211.37,0.868837]
[1693589429066,0.17108548,212.16,211.37,0.94408529]
[1693589429270,0.17108548,212.16,211.38,0.868837]
[1693589429468,0.17108548,212.16,211.43,0.07524829]
[1693589429663,0.17108548,212.21,211.44,0.868837]
[1693589430169,0.17108548,212.22,211.44,0.868837]
[1693589430469,0.17108548,212.21,211.44,0.868837]
[1693589430767,0.17108548,212.22,211.44,0.868837]
[1693589430969,0.17108548,212.2,211.44,0.94408529]
[1693589431163,0.17108548,212.19,211.45,0.94408529]
[1693589431369,0.17108548,212.24,211.46,0.868837]
[1693589431566,0.17108548,212.25,211.46,0.868837]
[1693589431770,0.17108548,212.24,211.46,0.868837]
[1693589431968,0.17108548,212.25,211.45,0.868837]
[1693589432765,4.9179359,212.23,211.44,0.868837]
[1693589432971,0.17108548,212.22,211.44,0.868837]
[1693589433169,0.17108548,212.22,211.43,0.868837]
[1693589434372,0.17108548,212.22,211.43,0.94408529]
[1693589434566,0.17108548,212.22,211.44,0.07524829]
[1693589434770,0.17108548,212.21,211.44,0.868837]
[1693589434972,0.17108548,212.25,211.44,0.94408529]
[1693589435173,0.17108548,212.2,211.44,0.868837]
[1693589435375,0.17108548,212.19,211.45,0.868837]
[1693589435770,0.17108548,212.18,211.46,0.868837]
[1693589435970,0.17108548,212.25,211.45,0.868837]
[1693589436167,5.08902138,212.24,211.46,0.868837]
[1693589436371,0.17108548,212.23,211.45,0.868837]
[1693589436572,0.17108548,212.23,211.47,0.868837]
[1693589436871,0.17108548,212.23,211.48,0.868837]
[1693589437072,0.17108548,212.23,211.44,0.868837]
[1693589437272,0.17108548,212.23,211.29,0.50165528]
[1693589437273,0.17108548,212.23,211.45,0.868837]
[1693589437470,0.17108548,212.23,211.43,0.868837]
[1693589437772,5.08902138,212.23,211.44,0.868837]
[1693589438172,0.17108548,212.22,211.45,0.868837]
[1693589438367,5.08902138,212.23,211.45,0.868837]
[1693589438567,0.17108548,212.22,211.46,0.868837]
[1693589438773,0.17108548,212.22,211.45,0.868837]
[1693589439468,0.17108548,212.22,211.44,0.868837]
[1693589439673,0.17108548,212.22,211.45,0.868837]
[1693589439868,0.17108548,212.22,211.44,0.868837]
[1693589440074,0.17108548,212.22,211.45,0.868837]
[1693589440276,0.17108548,212.22,211.42,0.868837]
[1693589440476,4.9179359,212.15,211.43,0.868837]
[1693589440774,5.08902138,212.14,211.44,0.868837]
[1693589441074,0.17108548,212.13,211.45,0.868837]
[1693589441269,0.17108548,212.13,211.38,0.868837]
[1693589441874,0.17108548,212.13,211.38,0.07524829]
[1693589442075,0.17108548,212.14,211.39,0.868837]
[1693589442271,4.9179359,212.15,211.39,0.868837]
[1693589442272,0.17108548,212.13,211.39,0.868837]
[1693589442576,0.17108548,212.12,211.39,0.868837]
[1693589442773,9.83587181,212.2,211.39,0.868837]
[1693589442774,0.17108548,212.14,211.43,0.07524829]
[1693589442974,0.17108548,212.19,211.44,0.868837]
[1693589443174,4.9179359,212.2,211.44,0.868837]
[1693589443175,0.17108548,212.18,211.44,0.868837]
[1693589443475,0.17108548,212.17,211.44,0.868837]
[1693589443775,0.17108548,212.19,211.43,0.868837]
[1693589443974,4.9179359,212.2,211.35,0.15049658]
[1693589443975,0.17108548,212.18,211.44,0.868837]
[1693589444174,0.17108548,212.19,211.42,0.94408529]
[1693589444470,5.08902138,212.19,211.43,0.868837]
[1693589444673,0.17108548,212.18,211.43,0.868837]
[1693589444869,5.08902138,212.19,211.43,0.868837]
[1693589445069,0.17108548,212.18,211.43,0.868837]
[1693589445774,0.17108548,212.18,211.43,0.94408529]
[1693589445967,0.17108548,212.18,211.44,0.868837]
[1693589446767,0.17108548,212.18,211.44,0.94408529]
[1693589446967,0.17108548,212.19,211.45,0.868837]
[1693589447873,0.17108548,212.19,211.44,0.94408529]
[1693589448075,0.17108548,212.19,211.46,0.868837]
[1693589448269,4.9179359,212.18,211.47,0.868837]
[1693589448470,0.17108548,212.17,211.45,0.868837]
[1693589448872,0.17108548,212.17,211.24,0.50165528]
[1693589448873,0.17108548,212.17,211.39,0.94408529]
[1693589449073,0.17108548,212.17,211.46,0.868837]
[1693589449374,0.17108548,212.17,211.47,0.868837]
[1693589449776,0.17108548,212.18,211.46,0.94408529]
[1693589449974,0.17108548,212.18,211.47,0.94408529]
[1693589450175,0.17108548,212.18,211.48,0.868837]
[1693589450776,5.08902138,212.18,211.48,0.94408529]
[1693589451071,0.17108548,212.17,211.49,0.868837]
[1693589451271,0.17108548,212.17,211.48,0.868837]
[1693589451977,0.17108548,212.17,211.49,0.07524829]
[1693589452176,4.9179359,212.15,211.5,0.868837]
[1693589452379,0.17108548,212.14,211.5,0.868837]
[1693589452774,0.17108548,212.14,211.49,0.868837]
[1693589452979,0.17108548,212.14,211.51,0.868837]
[1693589453279,0.17108548,212.14,211.52,0.868837]
[1693589453477,0.17108548,212.14,211.5,0.868837]
[1693589454178,0.17108548,212.14,211.51,0.07524829]
[1693589454379,0.17108548,212.14,211.52,0.868837]
[1693589454679,5.08902138,212.14,211.52,0.868837]
[1693589454880,5.08902138,212.13,211.52,0.868837]
[1693589455079,9.83587181,212.2,211.52,0.868837]
[1693589455080,0.17108548,212.12,211.52,0.868837]
[1693589455278,0.17108548,212.13,211.52,0.868837]
[1693589455782,4.9179359,212.12,211.54,0.07524829]
[1693589455979,0.17108548,212.11,211.55,0.868837]
[1693589456183,0.17108548,212.11,211.55,0.94408529]
[1693589456379,0.17108548,212.12,211.56,0.868837]
[1693589456783,0.17108548,212.12,211.55,0.07524829]
[1693589456982,0.17108548,212.12,211.56,0.86855075]
[1693589457685,0.17108548,212.12,211.56,0.94379904]
[1693589457883,5.08902138,212.12,211.56,0.07524829]
[1693589458083,0.17108548,212.11,211.56,0.07524829]
[1693589458279,0.17108548,212.12,211.56,0.07524829]
[1693589458483,0.17108548,212.11,211.56,0.07524829]
[1693589458686,0.17108548,212.12,211.56,0.07524829]
[1693589458887,0.17108548,212.11,211.56,0.07524829]
[1693589459190,0.17108548,212.1,211.56,0.07524829]
[1693589459487,0.17108548,212.09,211.56,0.07524829]
[1693589459685,0.17108548,212.12,211.57,0.07524829]
[1693589459887,0.17108548,212.11,211.57,0.07524829]
[1693589460080,5.08902138,212.12,211.57,0.07524829]
[1693589460283,0.17108548,212.11,211.57,0.07524829]
[1693589460683,0.17108548,212.11,211.58,0.07524829]
[1693589460879,4.9179359,212.13,211.58,0.07524829]
[1693589460880,0.17108548,212.12,211.58,0.07524829]
[1693589461691,0.17108548,212.12,211.57,0.07524829]
[1693589462187,0.17108548,212.12,211.56,0.07524829]
[1693589462580,0.17108548,212.12,211.57,0.07524829]
[1693589462886,5.08902138,212.12,211.57,0.07524829]
[1693589463085,0.17108548,212.11,211.57,0.07524829]
[1693589463288,0.17108548,212.12,211.57,0.07524829]
[1693589463684,0.17108548,212.12,211.58,0.07524829]
[1693589463883,5.08902138,212.12,211.58,0.07524829]
[1693589464086,0.17108548,212.11,211.59,0.07524829]
[1693589464689,0.17108548,212.11,211.63,0.07524829]
[1693589464889,0.17108548,212.16,211.64,0.07524829]
[1693589465089,0.17108548,212.15,211.64,0.07524829]
[1693589465391,0.17108548,212.14,211.64,0.07524829]
[1693589465592,0.17108548,212.16,211.62,0.07524829]
[1693589465788,0.17108548,212.15,211.62,0.07524829]
[1693589465985,0.17108548,212.18,211.62,0.07524829]
[1693589466194,0.17108548,212.17,211.62,0.07524829]
[1693589466393,0.17108548,212.18,211.62,0.07524829]
[1693589466596,0.17108548,212.17,211.62,0.07524829]
[1693589466795,0.17108548,212.18,211.62,0.07524829]
[1693589467096,0.17108548,212.17,211.63,0.86826963]
[1693589467296,0.17108548,212.18,211.63,0.94351792]
[1693589467495,0.17108548,212.17,211.63,0.07524829]
[1693589467691,0.17108548,212.17,211.16,3.51158697]
[1693589467692,0.17108548,212.19,211.62,0.07524829]
[1693589467900,0.17108548,212.18,211.63,0.8682264]
[1693589468196,0.17108548,212.17,211.63,0.8682264]
[1693589468392,0.17108548,212.16,211.63,0.8682264]
[1693589468693,0.17108548,212.15,211.63,0.8682264]
[1693589468901,0.17108548,212.21,211.63,0.8682264]
[1693589469101,0.17108548,212.2,211.63,0.8682264]
[1693589469396,0.17108548,212.19,211.63,0.8682264]
[1693589469621,0.17108548,212.21,211.63,0.8682264]
[1693589469917,0.17108548,212.2,211.64,0.8682264]
[1693589470197,0.17108548,212.2,211.6,0.07524829]
[1693589470198,0.17108548,212.19,211.61,0.07524829]
[1693589470396,0.17108548,212.22,211.62,0.86822254]
[1693589470595,0.17108548,212.21,211.62,0.86822254]
[1693589470798,0.17108548,212.22,211.62,0.86822254]
[1693589470997,0.17108548,212.21,211.62,0.86822254]
[1693589471197,0.17108548,212.22,211.62,0.86822254]
[1693589471898,0.17108548,212.23,211.61,0.86822254]
[1693589472089,0.17108548,212.23,211.62,0.86822254]
[1693589472295,0.17108548,212.23,211.6,0.86822254]
[1693589472496,0.17108548,212.23,211.61,0.86822254]
[1693589472691,0.17108548,212.24,211.6,0.86822254]
[1693589472995,0.17108548,212.23,211.61,0.86822254]
[1693589473296,0.17108548,212.22,211.61,0.86822254]
[1693589473600,0.17108548,212.21,211.61,0.86822254]
[1693589473797,0.17108548,212.24,211.61,0.86822254]
[1693589474098,0.17108548,212.23,211.62,0.86822254]
[1693589474297,0.17108548,212.22,211.63,0.86822254]
[1693589474496,0.17108548,212.21,211.64,0.86822254]
[1693589474691,0.17108548,212.2,211.65,0.86822254]
[1693589474892,0.17108548,212.26,211.6,0.07524829]
[1693589475090,0.17108548,212.25,211.61,0.86818386]
[1693589475295,0.17108548,212.26,211.61,0.86818386]
[1693589475599,0.17108548,212.25,211.61,0.86818386]
[1693589475797,0.17108548,212.27,211.6,0.94343215]
[1693589475997,0.17108548,212.26,211.61,0.86818386]
[1693589476198,0.17108548,212.26,211.61,0.94343215]
[1693589476399,0.17108548,212.26,211.62,0.86818386]
[1693589476596,0.17108548,212.26,211.65,0.07524829]
[1693589476902,0.17108548,212.25,211.66,0.94343215]
[1693589477098,0.17108548,212.24,211.67,0.86818386]
[1693589477303,0.17108548,212.31,211.65,0.86818386]
[1693589477504,0.17108548,212.3,211.6,0.07524829]
[1693589477705,0.17108548,212.3,211.52,0.15049658]
[1693589477706,0.17108548,212.31,211.61,0.86824536]
[1693589477902,6.88511027,212.27,211.59,0.86824536]
[1693589478104,0.17108548,212.26,211.6,0.86824536]
[1693589478403,5.08902138,212.26,211.61,0.86824536]
[1693589478603,0.17108548,212.25,211.6,0.86824536]
[1693589479406,0.17108548,212.25,211.61,0.86824536]
[1693589479598,0.17108548,212.25,211.59,0.86824536]
[1693589479801,5.08902138,212.25,211.6,0.86824536]
[1693589480004,0.17108548,212.24,211.59,0.86824536]
[1693589480300,0.17108548,212.24,211.6,0.86824536]
[1693589480505,0.17108548,212.24,211.58,0.86824536]
[1693589480698,0.17108548,212.24,211.34,1.00331056]
[1693589480699,6.88511027,212.21,211.51,0.07524829]
[1693589480902,0.17108548,212.2,211.52,0.86849529]
[1693589481104,4.9179359,212.17,211.52,0.86849529]
[1693589481304,0.17108548,212.16,211.53,0.86849529]
[1693589481505,0.17108548,212.16,211.55,0.07524829]
[1693589481702,0.17108548,212.21,211.56,0.94374358]
[1693589481906,0.17108548,212.2,211.57,0.86849529]
[1693589482206,0.17108548,212.19,211.57,0.86849529]
[1693589482406,0.17108548,212.22,211.57,0.86849529]
[1693589482608,0.17108548,212.21,211.57,0.86849529]
[1693589482808,0.17108548,212.22,211.57,0.94374358]
[1693589483003,0.17108548,212.21,211.58,0.86849529]
[1693589483204,0.17108548,212.2,211.58,0.86849529]
[1693589483405,0.17108548,212.23,211.57,0.86849529]
[1693589483605,0.17108548,212.19,211.58,0.86849529]
[1693589483805,0.17108548,212.18,211.57,0.86849529]
[1693589484106,0.17108548,212.17,211.59,0.07524829]
[1693589484300,0.17108548,212.19,211.6,0.86849529]
[1693589484503,0.17108548,212.18,211.6,0.86849529]
[1693589484806,0.17108548,212.17,211.6,0.86849529]
[1693589485001,0.17108548,212.2,211.6,0.86849529]
[1693589485302,0.17108548,212.19,211.64,0.07524829]
[1693589485607,0.17108548,212.18,211.65,0.94374358]
[1693589485807,0.17108548,212.28,211.66,0.86849529]
[1693589486007,0.17108548,212.27,211.66,0.86849529]
[1693589486207,0.17108548,212.28,211.66,0.86849529]
[1693589486408,0.17108548,212.27,211.66,0.86849529]
[1693589486602,11.80304617,212.29,211.66,0.86849529]
[1693589486603,0.17108548,212.28,211.66,0.86849529]
[1693589486903,0.17108548,212.27,211.66,0.86849529]
[1693589487108,0.17108548,212.28,211.66,0.86849529]
[1693589487301,0.17108548,212.27,211.66,0.86849529]
[1693589487608,0.17108548,212.26,211.67,0.86849529]
[1693589487805,0.17108548,212.25,211.68,0.86849529]
[1693589488003,6.88511027,212.31,211.65,0.94374358]
[1693589488004,0.17108548,212.24,211.65,0.94374358]
[1693589488204,0.17108548,212.27,211.66,0.86849529]
[1693589488409,0.17108548,212.26,211.66,0.86849529]
[1693589488710,0.17108548,212.25,211.66,0.86849529]
[1693589488909,0.17108548,212.28,211.66,0.86849529]
[1693589489109,0.17108548,212.27,211.66,0.86849529]
[1693589489508,0.17108548,212.27,211.65,0.86849529]
[1693589489709,0.17108548,212.27,211.66,0.86849529]
[1693589490004,0.17108548,212.27,211.67,0.86849529]
[1693589490209,0.17108548,212.27,211.68,0.86849529]
[1693589490405,0.17108548,212.27,211.69,0.86849529]
[1693589490604,0.17108548,212.27,211.66,0.86849529]
[1693589490803,0.17108548,212.27,211.67,0.86849529]
[1693589491010,0.17108548,212.27,211.66,0.94374358]
[1693589491206,0.17108548,212.28,211.67,0.86849529]
[1693589491409,0.17108548,212.27,211.67,0.86849529]
[1693589491707,0.17108548,212.26,211.67,0.86849529]
[1693589492010,0.17108548,212.25,211.67,0.94374358]
[1693589492205,0.17108548,212.28,211.68,0.86849529]
[1693589492410,0.17108548,212.27,211.68,0.86849529]
[1693589492608,0.17108548,212.29,211.68,0.86849529]
[1693589492810,0.17108548,212.28,211.68,0.94374358]
[1693589493110,0.17108548,212.27,211.69,0.86849529]
[1693589493310,0.17108548,212.29,211.69,0.86849529]
[1693589493504,0.17108548,212.28,211.69,0.86849529]
[1693589493707,0.17108548,212.29,211.69,0.86849529]
[1693589493907,0.17108548,212.28,211.68,0.86849529]
[1693589494108,0.17108548,212.3,211.69,0.86849529]
[1693589494305,0.17108548,212.29,211.69,0.86849529]
[1693589494506,4.9179359,212.31,211.69,0.86849529]
[1693589494507,0.17108548,212.3,211.69,0.86849529]
[1693589494810,0.17108548,212.29,211.67,0.07524829]
[1693589495011,4.9179359,212.29,211.68,0.86799356]
[1693589495207,0.17108548,212.28,211.68,0.86799356]
[1693589496311,0.17108548,212.28,211.61,0.07524829]
[1693589496512,6.88511027,212.25,211.62,0.86823757]
[1693589496712,0.17108548,212.24,211.61,0.86823757]
[1693589497013,4.9179359,212.23,211.62,0.86823757]
[1693589497214,0.17108548,212.22,211.62,0.94348586]
[1693589497413,0.17108548,212.22,211.61,0.07524829]
[1693589497716,0.17108548,212.22,211.62,0.86827562]
[1693589498513,4.9179359,212.19,211.63,0.07524829]
[1693589498712,0.17108548,212.18,211.63,0.07524829]
[1693589499009,0.17108548,212.18,211.68,0.07524829]
[1693589499215,0.17108548,212.23,211.7,0.07524829]
[1693589499410,0.17108548,212.22,211.7,0.07524829]
[1693589499616,0.17108548,212.21,211.7,0.07524829]